[Event "Titled Tuesday Blitz June 14 Early 2022"]
[White "Karolczuk, Iwo"]
[Black "Morefield, Jason"]
[WhiteFideId "21816972"]
[BlackFideId "30920825"]
[WhiteElo "2281"]
[BlackElo "2171"]
[Result "1-0"]
[Round "10"]
[TimeControl "180+1"]
[Date "2022.06.14"]
[WhiteClock "0:00:13"]
[BlackClock "0:00:10"]

1. e4 {[%clk 0:03:00]}  d6 {[%clk 0:02:59]} 2. d4 {[%clk 0:03:00]}  Nf6 {[%clk 0:03:00]} 3. Nc3 {[%clk 0:02:57]}  g6 {[%clk 0:03:00]} 4. h3 {[%clk 0:02:52]}  Bg7 {[%clk 0:03:00]} 5. Be3 {[%clk 0:02:53]}  c6 {[%clk 0:02:56]} 6. Qd2 {[%clk 0:02:52]}  Nbd7 {[%clk 0:02:53]} 7. a4 {[%clk 0:02:51]}  Qa5 {[%clk 0:02:51]} 8. Nf3 {[%clk 0:02:50]}  O-O {[%clk 0:02:44]} 9. Bc4 {[%clk 0:02:43]}  d5 {[%clk 0:02:26]} 10. exd5 {[%clk 0:02:41]}  Nb6 {[%clk 0:02:21]} 11. Bb3 {[%clk 0:02:34]}  cxd5 {[%clk 0:02:18]} 12. O-O {[%clk 0:02:29]}  Nc4 {[%clk 0:02:14]} 13. Bxc4 {[%clk 0:02:26]}  dxc4 {[%clk 0:02:15]} 14. Rfe1 {[%clk 0:01:46]}  Bf5 {[%clk 0:02:05]} 15. Bf4 {[%clk 0:01:43]}  Rfe8 {[%clk 0:01:51]} 16. Re5 {[%clk 0:01:36]}  Qd8 {[%clk 0:01:37]} 17. Re2 {[%clk 0:01:34]}  Rc8 {[%clk 0:01:28]} 18. Rae1 {[%clk 0:01:33]}  h5 {[%clk 0:01:07]} 19. d5 {[%clk 0:01:27]}  Rc5 {[%clk 0:00:49]} 20. Rd1 {[%clk 0:01:11]}  Qa5 {[%clk 0:00:39]} 21. Be3 {[%clk 0:00:46]}  Rcc8 {[%clk 0:00:36]} 22. Bf4 {[%clk 0:00:25]}  a6 {[%clk 0:00:20]} 23. Qe1 {[%clk 0:00:25]}  Bf8 {[%clk 0:00:16]} 24. Be5 {[%clk 0:00:22]}  Nd7 {[%clk 0:00:15]} 25. Bd4 {[%clk 0:00:22]}  b5 {[%clk 0:00:14]} 26. axb5 {[%clk 0:00:21]}  axb5 {[%clk 0:00:15]} 27. Nh4 {[%clk 0:00:21]}  e5 {[%clk 0:00:13]} 28. Nxf5 {[%clk 0:00:16]}  gxf5 {[%clk 0:00:08]} 29. Bxe5 {[%clk 0:00:16]}  b4 {[%clk 0:00:06]} 30. Nb1 {[%clk 0:00:13]}  Rc5 {[%clk 0:00:05]} 31. Bd4 {[%clk 0:00:11]}  Rxe2 {[%clk 0:00:04]} 32. Qxe2 {[%clk 0:00:12]}  Rxd5 {[%clk 0:00:05]} 33. Qxh5 {[%clk 0:00:11]}  Bg7 {[%clk 0:00:03]} 34. Qg5 {[%clk 0:00:03]}  f6 {[%clk 0:00:02]} 35. Qe3 {[%clk 0:00:03]}  Nf8 {[%clk 0:00:02]} 36. c3 {[%clk 0:00:03]}  Qd8 {[%clk 0:00:03]} 37. Nd2 {[%clk 0:00:02]}  bxc3 {[%clk 0:00:03]} 38. bxc3 {[%clk 0:00:03]}  Rd7 {[%clk 0:00:03]} 39. Nxc4 {[%clk 0:00:04]}  Kh7 {[%clk 0:00:03]} 40. Qf3 {[%clk 0:00:04]}  Ng6 {[%clk 0:00:03]} 41. Qxf5 {[%clk 0:00:04]}  Qc7 {[%clk 0:00:03]} 42. Ne3 {[%clk 0:00:05]}  Re7 {[%clk 0:00:03]} 43. Ng4 {[%clk 0:00:05]}  Rf7 {[%clk 0:00:04]} 44. Qh5+ {[%clk 0:00:05]}  Kg8 {[%clk 0:00:04]} 45. Qxg6 {[%clk 0:00:06]}  f5 {[%clk 0:00:04]} 46. Nh6+ {[%clk 0:00:06]}  Kf8 {[%clk 0:00:03]} 47. Qxf7+ {[%clk 0:00:06]}  Qxf7 {[%clk 0:00:03]} 48. Nxf7 {[%clk 0:00:07]}  Bxd4 {[%clk 0:00:03]} 49. Rxd4 {[%clk 0:00:07]}  Kxf7 {[%clk 0:00:04]} 50. Rd1 {[%clk 0:00:08]}  Kg6 {[%clk 0:00:05]} 51. f3 {[%clk 0:00:09]}  Kh5 {[%clk 0:00:06]} 52. c4 {[%clk 0:00:10]}  Kg5 {[%clk 0:00:07]} 53. c5 {[%clk 0:00:11]}  Kh4 {[%clk 0:00:08]} 54. c6 {[%clk 0:00:11]}  f4 {[%clk 0:00:08]} 55. c7 {[%clk 0:00:12]}  Kg3 {[%clk 0:00:09]} 56. c8=Q {[%clk 0:00:12]}  Kh4 {[%clk 0:00:10]} 57. Qg4# {[%clk 0:00:13]} 1-0


[Site "https://www.chess.com"]

[Event "Titled Tuesday Blitz June 14 Early 2022"]
[White "Lagno, Kateryna"]
[Black "Jaskolka, Tomasz"]
[WhiteFideId "14109336"]
[BlackFideId "1170791"]
[WhiteElo "2522"]
[BlackElo "2073"]
[Result "1/2-1/2"]
[Round "10"]
[TimeControl "180+1"]
[Date "2022.06.14"]
[WhiteClock "0:00:22"]
[BlackClock "0:00:11"]

1. e4 {[%clk 0:02:57]}  c5 {[%clk 0:02:59]} 2. Nf3 {[%clk 0:02:57]}  e6 {[%clk 0:03:00]} 3. d4 {[%clk 0:02:57]}  cxd4 {[%clk 0:03:01]} 4. Nxd4 {[%clk 0:02:58]}  Nc6 {[%clk 0:03:00]} 5. Nc3 {[%clk 0:02:59]}  Qc7 {[%clk 0:03:00]} 6. Be3 {[%clk 0:02:59]}  a6 {[%clk 0:03:00]} 7. a3 {[%clk 0:02:58]}  b5 {[%clk 0:03:00]} 8. Nxc6 {[%clk 0:02:58]}  Qxc6 {[%clk 0:02:49]} 9. Be2 {[%clk 0:02:57]}  Bb7 {[%clk 0:02:48]} 10. O-O {[%clk 0:02:57]}  Be7 {[%clk 0:02:17]} 11. Bf3 {[%clk 0:02:51]}  Qc7 {[%clk 0:02:17]} 12. Qd2 {[%clk 0:02:32]}  d6 {[%clk 0:02:07]} 13. Rfd1 {[%clk 0:02:31]}  Nf6 {[%clk 0:02:07]} 14. Bg5 {[%clk 0:02:28]}  O-O {[%clk 0:01:56]} 15. Qe3 {[%clk 0:02:10]}  Rac8 {[%clk 0:01:53]} 16. Rd2 {[%clk 0:02:09]}  Rfd8 {[%clk 0:01:48]} 17. Rad1 {[%clk 0:02:08]}  Ne8 {[%clk 0:01:47]} 18. h4 {[%clk 0:02:06]}  Bxg5 {[%clk 0:01:36]} 19. hxg5 {[%clk 0:02:05]}  Qc5 {[%clk 0:01:35]} 20. Rd4 {[%clk 0:02:00]}  a5 {[%clk 0:01:20]} 21. R1d2 {[%clk 0:01:52]}  Bc6 {[%clk 0:01:00]} 22. b4 {[%clk 0:01:47]}  Qb6 {[%clk 0:00:56]} 23. Ne2 {[%clk 0:01:46]}  e5 {[%clk 0:00:49]} 24. R4d3 {[%clk 0:01:46]}  Qxe3 {[%clk 0:00:50]} 25. Rxe3 {[%clk 0:01:45]}  axb4 {[%clk 0:00:51]} 26. axb4 {[%clk 0:01:44]}  Ra8 {[%clk 0:00:49]} 27. Red3 {[%clk 0:01:43]}  Kf8 {[%clk 0:00:41]} 28. Ng3 {[%clk 0:01:27]}  g6 {[%clk 0:00:41]} 29. Nf1 {[%clk 0:01:25]}  Ke7 {[%clk 0:00:34]} 30. Ne3 {[%clk 0:01:23]}  Nc7 {[%clk 0:00:33]} 31. Rc3 {[%clk 0:01:17]}  Ra6 {[%clk 0:00:28]} 32. Nd5+ {[%clk 0:01:12]}  Nxd5 {[%clk 0:00:27]} 33. exd5 {[%clk 0:01:12]}  Bd7 {[%clk 0:00:27]} 34. Be2 {[%clk 0:01:09]}  Ra4 {[%clk 0:00:25]} 35. Rb3 {[%clk 0:01:00]}  Rc8 {[%clk 0:00:25]} 36. c3 {[%clk 0:01:00]}  Ra1+ {[%clk 0:00:19]} 37. Kh2 {[%clk 0:01:00]}  Rc1 {[%clk 0:00:20]} 38. Rd3 {[%clk 0:00:55]}  Rc2 {[%clk 0:00:20]} 39. Re3 {[%clk 0:00:55]}  f6 {[%clk 0:00:19]} 40. gxf6+ {[%clk 0:00:52]}  Kxf6 {[%clk 0:00:20]} 41. Kg3 {[%clk 0:00:49]}  Rc7 {[%clk 0:00:15]} 42. f4 {[%clk 0:00:46]}  exf4+ {[%clk 0:00:14]} 43. Kxf4 {[%clk 0:00:47]}  g5+ {[%clk 0:00:15]} 44. Kg3 {[%clk 0:00:47]}  h5 {[%clk 0:00:13]} 45. Ra3 {[%clk 0:00:40]}  h4+ {[%clk 0:00:11]} 46. Kf2 {[%clk 0:00:35]}  Bg4 {[%clk 0:00:11]} 47. Ra6 {[%clk 0:00:31]}  Bxe2 {[%clk 0:00:10]} 48. Rxe2 {[%clk 0:00:32]}  R7xc3 {[%clk 0:00:09]} 49. Rxd6+ {[%clk 0:00:31]}  Kf5 {[%clk 0:00:10]} 50. Rb6 {[%clk 0:00:24]}  Rxe2+ {[%clk 0:00:09]} 51. Kxe2 {[%clk 0:00:25]}  Ke5 {[%clk 0:00:10]} 52. Rxb5 {[%clk 0:00:24]}  Rc2+ {[%clk 0:00:10]} 53. Kf3 {[%clk 0:00:24]}  Rc3+ {[%clk 0:00:10]} 54. Kf2 {[%clk 0:00:25]}  Rc2+ {[%clk 0:00:10]} 55. Kf3 {[%clk 0:00:25]}  Rc3+ {[%clk 0:00:10]} 56. Kf2 {[%clk 0:00:23]}  Rc2+ {[%clk 0:00:11]} 57. Kf3 {[%clk 0:00:22]} 1/2-1/2


[Site "https://www.chess.com"]

[Event "Titled Tuesday Blitz June 14 Early 2022"]
[White "Maximov, Dmitry"]
[Black "Kanyamarala, Tarun"]
[WhiteFideId "14105659"]
[BlackFideId "45004714"]
[WhiteElo "2494"]
[BlackElo "2219"]
[Result "1-0"]
[Round "10"]
[TimeControl "180+1"]
[Date "2022.06.14"]
[WhiteClock "0:00:24"]
[BlackClock "0:00:01"]

1. e4 {[%clk 0:03:00]}  c5 {[%clk 0:02:59]} 2. Nf3 {[%clk 0:02:59]}  Nc6 {[%clk 0:03:00]} 3. Bb5 {[%clk 0:02:59]}  e5 {[%clk 0:02:59]} 4. O-O {[%clk 0:02:58]}  Bd6 {[%clk 0:02:58]} 5. Re1 {[%clk 0:02:58]}  Nge7 {[%clk 0:02:58]} 6. c3 {[%clk 0:02:54]}  O-O {[%clk 0:02:57]} 7. d4 {[%clk 0:02:50]}  cxd4 {[%clk 0:02:53]} 8. cxd4 {[%clk 0:02:50]}  Nxd4 {[%clk 0:02:50]} 9. Nxd4 {[%clk 0:02:50]}  exd4 {[%clk 0:02:50]} 10. Qxd4 {[%clk 0:02:44]}  Qc7 {[%clk 0:02:42]} 11. g3 {[%clk 0:02:37]}  Be5 {[%clk 0:02:38]} 12. Qc4 {[%clk 0:02:28]}  Qb6 {[%clk 0:02:31]} 13. Be3 {[%clk 0:02:20]}  Qf6 {[%clk 0:02:30]} 14. Nc3 {[%clk 0:01:45]}  a6 {[%clk 0:02:29]} 15. Ba4 {[%clk 0:01:40]}  b5 {[%clk 0:02:29]} 16. Nxb5 {[%clk 0:01:35]}  axb5 {[%clk 0:02:28]} 17. Bxb5 {[%clk 0:01:36]}  d5 {[%clk 0:02:16]} 18. exd5 {[%clk 0:01:34]}  Bh3 {[%clk 0:02:12]} 19. Qe4 {[%clk 0:01:24]}  Bxb2 {[%clk 0:02:07]} 20. Rab1 {[%clk 0:01:21]}  Nf5 {[%clk 0:02:05]} 21. Bf4 {[%clk 0:01:14]}  Bd4 {[%clk 0:01:58]} 22. a4 {[%clk 0:01:08]}  Bc5 {[%clk 0:01:44]} 23. Bd3 {[%clk 0:01:01]}  g6 {[%clk 0:01:25]} 24. Be5 {[%clk 0:01:01]}  Qg5 {[%clk 0:01:22]} 25. Bf4 {[%clk 0:00:55]}  Qd8 {[%clk 0:01:19]} 26. Bb5 {[%clk 0:00:50]}  Bd6 {[%clk 0:01:11]} 27. Bd2 {[%clk 0:00:46]}  Qc7 {[%clk 0:00:55]} 28. Bc6 {[%clk 0:00:45]}  Rab8 {[%clk 0:00:53]} 29. a5 {[%clk 0:00:45]}  Ne7 {[%clk 0:00:44]} 30. Bc3 {[%clk 0:00:29]}  Nxc6 {[%clk 0:00:42]} 31. dxc6 {[%clk 0:00:29]}  Bf5 {[%clk 0:00:21]} 32. Qd4 {[%clk 0:00:29]}  f6 {[%clk 0:00:14]} 33. Rxb8 {[%clk 0:00:26]}  Rxb8 {[%clk 0:00:08]} 34. Qxf6 {[%clk 0:00:24]}  Qc8 {[%clk 0:00:01]} 35. Qg7# {[%clk 0:00:24]} 1-0


[Site "https://www.chess.com"]

[Event "Titled Tuesday Blitz June 14 Early 2022"]
[White "Nakamura, Hikaru"]
[Black "Sadhwani, Raunak"]
[WhiteFideId "2016192"]
[BlackFideId "35093487"]
[WhiteElo "2850"]
[BlackElo "2616"]
[Result "0-1"]
[Round "10"]
[TimeControl "180+1"]
[Date "2022.06.14"]
[WhiteClock "0:00:03"]
[BlackClock "0:00:10"]

1. Nf3 {[%clk 0:03:00]}  d5 {[%clk 0:02:59]} 2. d4 {[%clk 0:02:59]}  Nf6 {[%clk 0:02:59]} 3. e3 {[%clk 0:02:57]}  e6 {[%clk 0:02:58]} 4. c4 {[%clk 0:02:56]}  b6 {[%clk 0:02:59]} 5. Nc3 {[%clk 0:02:55]}  Bb7 {[%clk 0:02:59]} 6. cxd5 {[%clk 0:02:55]}  exd5 {[%clk 0:02:59]} 7. g3 {[%clk 0:02:56]}  a6 {[%clk 0:02:55]} 8. Bg2 {[%clk 0:02:56]}  Bd6 {[%clk 0:02:56]} 9. Ne5 {[%clk 0:02:56]}  Nbd7 {[%clk 0:02:53]} 10. f4 {[%clk 0:02:56]}  O-O {[%clk 0:02:49]} 11. O-O {[%clk 0:02:54]}  c5 {[%clk 0:02:49]} 12. Qd3 {[%clk 0:02:41]}  Re8 {[%clk 0:02:43]} 13. b3 {[%clk 0:02:32]}  Rc8 {[%clk 0:02:39]} 14. Bb2 {[%clk 0:02:27]}  b5 {[%clk 0:02:35]} 15. Qd1 {[%clk 0:02:05]}  cxd4 {[%clk 0:02:28]} 16. exd4 {[%clk 0:02:04]}  Nf8 {[%clk 0:02:26]} 17. Qd3 {[%clk 0:02:00]}  b4 {[%clk 0:02:12]} 18. Nd1 {[%clk 0:01:57]}  Ne4 {[%clk 0:02:11]} 19. Ne3 {[%clk 0:01:52]}  f6 {[%clk 0:02:10]} 20. N5g4 {[%clk 0:01:52]}  Kh8 {[%clk 0:01:41]} 21. Nf2 {[%clk 0:01:48]}  Nc3 {[%clk 0:01:40]} 22. Rfc1 {[%clk 0:01:34]}  Qa5 {[%clk 0:01:15]} 23. Bf3 {[%clk 0:01:23]}  Qb5 {[%clk 0:01:09]} 24. Qxb5 {[%clk 0:01:21]}  axb5 {[%clk 0:01:10]} 25. Re1 {[%clk 0:01:03]}  Ne6 {[%clk 0:01:09]} 26. Bg4 {[%clk 0:00:53]}  Nxd4 {[%clk 0:01:07]} 27. Nf5 {[%clk 0:00:45]}  Nxf5 {[%clk 0:00:46]} 28. Bxf5 {[%clk 0:00:46]}  Ra8 {[%clk 0:00:45]} 29. Rxe8+ {[%clk 0:00:43]}  Rxe8 {[%clk 0:00:46]} 30. Bd3 {[%clk 0:00:36]}  d4 {[%clk 0:00:40]} 31. Kf1 {[%clk 0:00:24]}  Kg8 {[%clk 0:00:40]} 32. Bxc3 {[%clk 0:00:24]}  dxc3 {[%clk 0:00:36]} 33. Bxb5 {[%clk 0:00:25]}  Ra8 {[%clk 0:00:35]} 34. Bc4+ {[%clk 0:00:24]}  Kf8 {[%clk 0:00:36]} 35. Nd1 {[%clk 0:00:24]}  Bc5 {[%clk 0:00:35]} 36. Nf2 {[%clk 0:00:25]}  Bd6 {[%clk 0:00:25]} 37. Nd3 {[%clk 0:00:23]}  h5 {[%clk 0:00:22]} 38. Ne1 {[%clk 0:00:20]}  Rd8 {[%clk 0:00:20]} 39. Rd1 {[%clk 0:00:19]}  Ke7 {[%clk 0:00:20]} 40. Nc2 {[%clk 0:00:17]}  Ra8 {[%clk 0:00:21]} 41. Nd4 {[%clk 0:00:16]}  g6 {[%clk 0:00:18]} 42. Re1+ {[%clk 0:00:17]}  Kd7 {[%clk 0:00:16]} 43. Re2 {[%clk 0:00:17]}  h4 {[%clk 0:00:12]} 44. Be6+ {[%clk 0:00:09]}  Kc7 {[%clk 0:00:11]} 45. Ke1 {[%clk 0:00:06]}  hxg3 {[%clk 0:00:11]} 46. hxg3 {[%clk 0:00:07]}  Rh8 {[%clk 0:00:11]} 47. Kd1 {[%clk 0:00:05]}  Bc5 {[%clk 0:00:10]} 48. Nc2 {[%clk 0:00:03]}  Bf3 {[%clk 0:00:10]} 0-1


[Site "https://www.chess.com"]

[Event "Titled Tuesday Blitz June 14 Early 2022"]
[White "Paravyan, David"]
[Black "Madaminov, Mukhiddin"]
[WhiteFideId "4194985"]
[BlackFideId "14210703"]
[WhiteElo "2569"]
[BlackElo "1916"]
[Result "1-0"]
[Round "10"]
[TimeControl "180+1"]
[Date "2022.06.14"]
[WhiteClock "0:01:01"]
[BlackClock "0:00:06"]

1. e4 {[%clk 0:02:25]}  e6 {[%clk 0:02:58]} 2. d4 {[%clk 0:02:25]}  d5 {[%clk 0:02:59]} 3. Nc3 {[%clk 0:02:26]}  Nf6 {[%clk 0:02:59]} 4. Bg5 {[%clk 0:02:23]}  Bb4 {[%clk 0:02:58]} 5. e5 {[%clk 0:02:23]}  h6 {[%clk 0:02:58]} 6. Bd2 {[%clk 0:02:23]}  Bxc3 {[%clk 0:02:58]} 7. bxc3 {[%clk 0:02:24]}  Ne4 {[%clk 0:02:59]} 8. Bc1 {[%clk 0:02:25]}  c5 {[%clk 0:02:43]} 9. Ne2 {[%clk 0:02:21]}  cxd4 {[%clk 0:02:41]} 10. cxd4 {[%clk 0:02:20]}  Nc6 {[%clk 0:02:38]} 11. c3 {[%clk 0:02:19]}  O-O {[%clk 0:02:22]} 12. h4 {[%clk 0:02:18]}  Qa5 {[%clk 0:01:48]} 13. Qb3 {[%clk 0:02:12]}  f6 {[%clk 0:01:16]} 14. f3 {[%clk 0:02:09]}  fxe5 {[%clk 0:01:16]} 15. fxe4 {[%clk 0:02:10]}  Nxd4 {[%clk 0:01:11]} 16. Nxd4 {[%clk 0:02:08]}  exd4 {[%clk 0:01:11]} 17. Bd2 {[%clk 0:02:01]}  d3 {[%clk 0:00:26]} 18. c4 {[%clk 0:02:00]}  Qc5 {[%clk 0:00:23]} 19. Qxd3 {[%clk 0:01:53]}  Qf2+ {[%clk 0:00:22]} 20. Kd1 {[%clk 0:01:53]}  dxc4 {[%clk 0:00:21]} 21. Qe3 {[%clk 0:01:46]}  Qf6 {[%clk 0:00:20]} 22. Bc3 {[%clk 0:01:45]}  Qd8+ {[%clk 0:00:14]} 23. Kc2 {[%clk 0:01:42]}  b5 {[%clk 0:00:10]} 24. Be2 {[%clk 0:01:37]}  Bb7 {[%clk 0:00:10]} 25. Rhf1 {[%clk 0:01:24]}  Qxh4 {[%clk 0:00:10]} 26. Rxf8+ {[%clk 0:01:19]}  Rxf8 {[%clk 0:00:11]} 27. Bf3 {[%clk 0:01:20]}  Qe7 {[%clk 0:00:11]} 28. a3 {[%clk 0:01:17]}  a6 {[%clk 0:00:10]} 29. Bb4 {[%clk 0:01:17]}  Qf6 {[%clk 0:00:09]} 30. Rd1 {[%clk 0:01:13]}  Rf7 {[%clk 0:00:08]} 31. Qd4 {[%clk 0:01:08]}  Qg6 {[%clk 0:00:08]} 32. Kb2 {[%clk 0:01:06]}  Kh7 {[%clk 0:00:09]} 33. Rd2 {[%clk 0:01:05]}  Qg5 {[%clk 0:00:06]} 34. Bc3 {[%clk 0:01:05]}  e5 {[%clk 0:00:06]} 35. Qxe5 {[%clk 0:01:03]}  Qxe5 {[%clk 0:00:07]} 36. Bxe5 {[%clk 0:01:04]}  Re7 {[%clk 0:00:08]} 37. Bc3 {[%clk 0:01:04]}  g6 {[%clk 0:00:06]} 38. Rd8 {[%clk 0:01:02]}  g5 {[%clk 0:00:06]} 39. Bh5 {[%clk 0:01:01]} 1-0


[Site "https://www.chess.com"]

[Event "Titled Tuesday Blitz June 14 Early 2022"]
[White "Rodrigue-Lemieux, Shawn"]
[Black "Galperin, Platon"]
[WhiteFideId "2620049"]
[BlackFideId "14165414"]
[WhiteElo "1763"]
[BlackElo "2432"]
[Result "1-0"]
[Round "10"]
[TimeControl "180+1"]
[Date "2022.06.14"]
[WhiteClock "0:01:30"]
[BlackClock "0:00:01"]

1. a3 {[%clk 0:03:00]}  Nf6 {[%clk 0:02:59]} 2. c4 {[%clk 0:02:59]}  g6 {[%clk 0:02:59]} 3. b4 {[%clk 0:02:59]}  Bg7 {[%clk 0:02:59]} 4. Bb2 {[%clk 0:02:59]}  O-O {[%clk 0:02:59]} 5. g3 {[%clk 0:03:00]}  d5 {[%clk 0:02:56]} 6. cxd5 {[%clk 0:03:01]}  Qxd5 {[%clk 0:02:55]} 7. Nf3 {[%clk 0:02:59]}  a5 {[%clk 0:02:53]} 8. Nc3 {[%clk 0:02:57]}  Qh5 {[%clk 0:02:51]} 9. h3 {[%clk 0:02:56]}  Nc6 {[%clk 0:02:48]} 10. b5 {[%clk 0:02:50]}  Ne5 {[%clk 0:02:47]} 11. Bg2 {[%clk 0:02:51]}  Nc4 {[%clk 0:02:44]} 12. Bc1 {[%clk 0:02:50]}  a4 {[%clk 0:02:39]} 13. Qc2 {[%clk 0:02:47]}  Nd6 {[%clk 0:02:37]} 14. d3 {[%clk 0:02:41]}  Nxb5 {[%clk 0:02:35]} 15. Bb2 {[%clk 0:02:35]}  Qc5 {[%clk 0:02:30]} 16. Rc1 {[%clk 0:02:26]}  Nxa3 {[%clk 0:02:28]} 17. Qd2 {[%clk 0:02:22]}  Qb4 {[%clk 0:01:40]} 18. Bxa3 {[%clk 0:02:21]}  Qxa3 {[%clk 0:01:41]} 19. Nb5 {[%clk 0:02:22]}  Qb3 {[%clk 0:01:40]} 20. Nfd4 {[%clk 0:02:22]}  c6 {[%clk 0:01:32]} 21. Nxb3 {[%clk 0:02:21]}  axb3 {[%clk 0:01:33]} 22. Nd4 {[%clk 0:02:17]}  Ra2 {[%clk 0:00:21]} 23. Qb4 {[%clk 0:02:16]}  b2 {[%clk 0:00:21]} 24. Rb1 {[%clk 0:02:14]}  Nd7 {[%clk 0:00:22]} 25. Nc2 {[%clk 0:02:05]}  Re8 {[%clk 0:00:22]} 26. O-O {[%clk 0:02:04]}  Ra6 {[%clk 0:00:05]} 27. d4 {[%clk 0:02:02]}  e5 {[%clk 0:00:05]} 28. e3 {[%clk 0:01:52]}  exd4 {[%clk 0:00:05]} 29. exd4 {[%clk 0:01:53]}  Rf8 {[%clk 0:00:05]} 30. Qxb2 {[%clk 0:01:51]}  Nf6 {[%clk 0:00:06]} 31. Ne3 {[%clk 0:01:51]}  b5 {[%clk 0:00:05]} 32. Qc2 {[%clk 0:01:50]}  Bd7 {[%clk 0:00:05]} 33. Rfc1 {[%clk 0:01:50]}  Rfa8 {[%clk 0:00:05]} 34. d5 {[%clk 0:01:49]}  Ra2 {[%clk 0:00:05]} 35. Qd1 {[%clk 0:01:44]}  cxd5 {[%clk 0:00:04]} 36. Nxd5 {[%clk 0:01:45]}  R8a7 {[%clk 0:00:02]} 37. Nc3 {[%clk 0:01:38]}  R2a3 {[%clk 0:00:02]} 38. Nxb5 {[%clk 0:01:37]}  Bxb5 {[%clk 0:00:03]} 39. Rxb5 {[%clk 0:01:37]}  h5 {[%clk 0:00:03]} 40. Rb8+ {[%clk 0:01:34]}  Kh7 {[%clk 0:00:03]} 41. Rbb1 {[%clk 0:01:31]}  Ra2 {[%clk 0:00:03]} 42. Ra1 {[%clk 0:01:30]}  Rxa1 {[%clk 0:00:01]} 43. Rxa1 {[%clk 0:01:31]}  Rd7 {[%clk 0:00:01]} 44. Qf1 {[%clk 0:01:30]} 1-0


[Site "https://www.chess.com"]

[Event "Titled Tuesday Blitz June 14 Early 2022"]
[White "Sargsyan, Anna M."]
[Black "Gaehwiler, Gabriel"]
[WhiteFideId "13308130"]
[BlackFideId "1314530"]
[WhiteElo "2271"]
[BlackElo "2383"]
[Result "0-1"]
[Round "10"]
[TimeControl "180+1"]
[Date "2022.06.14"]
[WhiteClock "0:00:01"]
[BlackClock "0:00:10"]

1. d4 {[%clk 0:03:00]}  Nf6 {[%clk 0:02:59]} 2. c4 {[%clk 0:03:01]}  g6 {[%clk 0:02:59]} 3. g3 {[%clk 0:03:01]}  Bg7 {[%clk 0:02:59]} 4. Bg2 {[%clk 0:03:02]}  O-O {[%clk 0:02:59]} 5. Nc3 {[%clk 0:03:02]}  d6 {[%clk 0:03:00]} 6. Nf3 {[%clk 0:03:03]}  c6 {[%clk 0:03:00]} 7. O-O {[%clk 0:03:03]}  Bf5 {[%clk 0:03:01]} 8. Nh4 {[%clk 0:02:49]}  Be6 {[%clk 0:03:00]} 9. d5 {[%clk 0:02:49]}  Bd7 {[%clk 0:03:00]} 10. e4 {[%clk 0:02:47]}  Na6 {[%clk 0:02:59]} 11. Re1 {[%clk 0:02:47]}  Rc8 {[%clk 0:02:58]} 12. Be3 {[%clk 0:02:43]}  cxd5 {[%clk 0:02:51]} 13. cxd5 {[%clk 0:02:44]}  Ng4 {[%clk 0:02:51]} 14. Bd4 {[%clk 0:02:44]}  Bxd4 {[%clk 0:02:48]} 15. Qxd4 {[%clk 0:02:45]}  Qb6 {[%clk 0:02:49]} 16. Qd2 {[%clk 0:02:22]}  Rc4 {[%clk 0:02:42]} 17. Nf3 {[%clk 0:02:13]}  Rfc8 {[%clk 0:02:28]} 18. e5 {[%clk 0:01:50]}  Rb4 {[%clk 0:01:53]} 19. e6 {[%clk 0:01:30]}  Be8 {[%clk 0:01:51]} 20. b3 {[%clk 0:01:15]}  f6 {[%clk 0:01:35]} 21. Rac1 {[%clk 0:00:59]}  f5 {[%clk 0:00:54]} 22. Na4 {[%clk 0:00:35]}  Qd8 {[%clk 0:00:52]} 23. Rxc8 {[%clk 0:00:22]}  Qxc8 {[%clk 0:00:52]} 24. Rc1 {[%clk 0:00:22]}  Qd8 {[%clk 0:00:51]} 25. Nb2 {[%clk 0:00:19]}  Nf6 {[%clk 0:00:42]} 26. Qc3 {[%clk 0:00:16]}  Rb5 {[%clk 0:00:36]} 27. Ng5 {[%clk 0:00:11]}  Rc5 {[%clk 0:00:35]} 28. Qe1 {[%clk 0:00:10]}  Qc7 {[%clk 0:00:33]} 29. Rd1 {[%clk 0:00:09]}  Rc2 {[%clk 0:00:32]} 30. Nd3 {[%clk 0:00:07]}  Nc5 {[%clk 0:00:30]} 31. Nb4 {[%clk 0:00:07]}  Rb2 {[%clk 0:00:19]} 32. Qc3 {[%clk 0:00:04]}  Rxf2 {[%clk 0:00:18]} 33. Nd3 {[%clk 0:00:05]}  Rxa2 {[%clk 0:00:13]} 34. b4 {[%clk 0:00:06]}  b6 {[%clk 0:00:12]} 35. bxc5 {[%clk 0:00:06]}  bxc5 {[%clk 0:00:13]} 36. Nf4 {[%clk 0:00:04]}  Qb6 {[%clk 0:00:12]} 37. Bf1 {[%clk 0:00:04]}  c4+ {[%clk 0:00:12]} 38. Qd4 {[%clk 0:00:03]}  Qxd4+ {[%clk 0:00:12]} 39. Rxd4 {[%clk 0:00:03]}  c3 {[%clk 0:00:13]} 40. Rc4 {[%clk 0:00:04]}  c2 {[%clk 0:00:12]} 41. Nd3 {[%clk 0:00:02]}  h6 {[%clk 0:00:11]} 42. Nb4 {[%clk 0:00:02]}  Rb2 {[%clk 0:00:10]} 43. Nf3 {[%clk 0:00:03]}  Rxb4 {[%clk 0:00:09]} 44. Rxc2 {[%clk 0:00:03]}  Kg7 {[%clk 0:00:07]} 45. Rc8 {[%clk 0:00:03]}  a5 {[%clk 0:00:07]} 46. Rc7 {[%clk 0:00:03]}  Kf8 {[%clk 0:00:07]} 47. Ra7 {[%clk 0:00:03]}  Nxd5 {[%clk 0:00:07]} 48. Rxa5 {[%clk 0:00:04]}  Nf6 {[%clk 0:00:07]} 49. Ra8 {[%clk 0:00:04]}  Re4 {[%clk 0:00:07]} 50. Nd2 {[%clk 0:00:04]}  Rxe6 {[%clk 0:00:07]} 51. Bb5 {[%clk 0:00:04]}  Re5 {[%clk 0:00:07]} 52. Bxe8 {[%clk 0:00:03]}  Nxe8 {[%clk 0:00:08]} 53. Nc4 {[%clk 0:00:02]}  Rc5 {[%clk 0:00:08]} 54. Nb6 {[%clk 0:00:03]}  Kf7 {[%clk 0:00:08]} 55. Nd7 {[%clk 0:00:03]}  Rc1+ {[%clk 0:00:08]} 56. Kg2 {[%clk 0:00:03]}  Nf6 {[%clk 0:00:09]} 57. Rf8+ {[%clk 0:00:02]}  Ke6 {[%clk 0:00:09]} 58. Nb6 {[%clk 0:00:01]}  Rc2+ {[%clk 0:00:09]} 59. Kf3 {[%clk 0:00:01]}  Ng4 {[%clk 0:00:10]} 60. h3 {[%clk 0:00:01]}  Rf2# {[%clk 0:00:10]} 0-1


[Site "https://www.chess.com"]